fUST/lending_fUST_20250725
["ID","MTS","AMOUNT","RATE_DAILY","PERIOD"]
[374668204,1753405861480,-676.46,0.00019084,2]
[374668205,1753405861490,-460.0,0.00019084,2]
[374668206,1753405861499,-904.33,0.00019084,2]
[374668207,1753405861508,-1156.4,0.00019084,2]
[374668208,1753405861518,-500.81,0.00019084,2]
[374668209,1753405861527,-460.0,0.00019084,2]
[374668210,1753405861536,-680.32,0.00019084,2]
[374668211,1753405861546,-460.0,0.00019084,2]
[374668212,1753405861554,-1029.72,0.00019084,2]
[374668213,1753405861563,-723.77,0.00019084,2]
[374668214,1753405861575,-460.0,0.00019084,2]
[374668215,1753405861584,-460.0,0.00019084,2]
[374668216,1753405861594,-460.0,0.00019084,2]
[374668217,1753405861602,-770.55,0.00019084,2]
[374668218,1753405861610,-460.0,0.00019084,2]
[374668219,1753405861617,-460.0,0.00019084,2]
[374668220,1753405861627,-1464.77,0.00019084,2]
[374668221,1753405861636,-460.0,0.00019084,2]
[374668222,1753405861645,-1451.71,0.00019084,2]
[374668223,1753405861655,-460.0,0.00019084,2]
[374668224,1753405861664,-460.0,0.00019084,2]
[374668225,1753405861674,-600.06,0.00019084,2]
[374668226,1753405861683,-460.0,0.00019084,2]
[374668227,1753405861693,-460.0,0.00019084,2]
[374668228,1753405861702,-473.06814664,0.00019084,2]
[374668229,1753405861712,-649.29,0.00019084,2]
[374668230,1753405861721,-460.0,0.00019084,2]
[374668231,1753405861731,-460.0,0.00019084,2]
[374668232,1753405861740,-632.98,0.00019084,2]
[374668233,1753405861750,-700.52,0.00019084,2]
[374668234,1753405861759,-570.48,0.00019084,2]
[374668235,1753405861769,-1352.89,0.00019084,2]
[374668236,1753405861778,-1205.96,0.00019084,2]
[374668237,1753405861788,-696.97,0.00019084,2]
[374668238,1753405861797,-542.27,0.00019084,2]
[374668239,1753405861807,-471.33534777,0.00019084,2]
[374668240,1753405861817,-625.29,0.00019084,2]
[374668241,1753405861830,-2698.01,0.00019085,2]
[374668242,1753405861840,-550.66,0.00019085,2]
[374668243,1753405861849,-1284.55,0.00019085,2]
[374668244,1753405861859,-5026.12,0.00019085,2]
[374668245,1753405861869,-3778.26,0.00019085,2]
[374668246,1753405861878,-516.32,0.00019085,2]
[374668247,1753405861888,-151.0,0.00019086,2]
[374668248,1753405861898,-460.0,0.00019086,2]
[374668249,1753405861907,-460.0,0.00019086,2]
[374668250,1753405861917,-508.09008705,0.00019086,2]
[374668251,1753405861927,-460.0,0.00019086,2]
[374668252,1753405861937,-460.0,0.00019086,2]
[374668253,1753405861947,-614.02,0.00019086,2]
[374668254,1753405861957,-460.0,0.00019086,2]
[374668255,1753405861966,-460.0,0.00019086,2]
[374668256,1753405861975,-460.0,0.00019086,2]
[374668257,1753405861985,-878.92,0.00019086,2]
[374668258,1753405861994,-843.8,0.00019086,2]
[374668259,1753405862003,-460.0,0.00019086,2]
[374668260,1753405862012,-460.0,0.00019086,2]
[374668261,1753405862022,-151.0,0.00019092,2]
[374668262,1753405862031,-232.905966,0.00019092,2]
[374668263,1753405862040,-151.0,0.00019092,2]
[374668264,1753405862049,-151.0,0.00019092,2]
[374668265,1753405862059,-1979.39,0.00019092,2]
[374668266,1753405862077,-151.0,0.00019092,2]
[374668267,1753405862087,-151.0,0.00019092,2]
[374668268,1753405862096,-631.28,0.00019092,2]
[374668269,1753405862107,-460.0,0.00019092,2]
[374668270,1753405862116,-942.95,0.00019092,2]
[374668271,1753405862125,-460.0,0.00019092,2]
[374668272,1753405862135,-460.0,0.00019092,2]
[374668273,1753405862145,-151.0,0.00019092,2]
[374668274,1753405862155,-460.0,0.00019092,2]
[374668275,1753405862166,-460.0,0.00019092,2]
[374668276,1753405862175,-460.0,0.00019092,2]
[374668277,1753405862184,-497.3,0.00019092,2]
[374668278,1753405862194,-1681.11,0.00019092,2]
[374668279,1753405862203,-675.8,0.00019092,2]
[374668280,1753405862213,-460.0,0.00019092,2]
[374668281,1753405862222,-756.57,0.00019092,2]
[374668282,1753405862232,-821.38,0.00019092,2]
[374668283,1753405862241,-217.502981,0.00019092,2]
[374668284,1753405862250,-217.502981,0.00019092,2]
[374668285,1753405862259,-526.09,0.00019092,2]
[374668286,1753405862268,-759.71,0.00019092,2]
[374668287,1753405862278,-524.24,0.00019092,2]
[374668288,1753405862287,-460.0,0.00019092,2]
[374668289,1753405862296,-460.0,0.00019092,2]
[374668290,1753405862306,-460.0,0.00019092,2]
[374668291,1753405862315,-460.0,0.00019092,2]
[374668292,1753405862326,-738.71,0.00019092,2]
[374668293,1753405862335,-151.0,0.00019093,2]
[374668294,1753405862345,-1149.0,0.00019093,2]
[374668295,1753405862354,-151.0,0.00019093,2]
[374668296,1753405862364,-151.0,0.00019093,2]
[374668297,1753405862374,-302.0,0.00019093,2]
[374668298,1753405862383,-151.0,0.00019093,2]
[374668299,1753405862392,-151.0,0.00019093,2]
[374668300,1753405862402,-359.0,0.00019093,2]
[374668301,1753405862412,-151.0,0.00019093,2]
[374668302,1753405862421,-151.0,0.00019093,2]
[374668303,1753405862431,-151.0,0.00019093,2]
[374668304,1753405862440,-168.17029073,0.00019093,2]
[374668305,1753405862450,-1079.0,0.00019093,2]
[374668306,1753405862460,-242.10496542,0.00019093,2]
[374668307,1753405862470,-151.0,0.00019093,2]
[374668308,1753405862480,-151.0,0.00019093,2]
[374668309,1753405862489,-500.0,0.00019093,2]
[374668310,1753405862500,-500.0,0.00019093,2]
[374668311,1753405862510,-500.0,0.00019093,2]
[374668312,1753405862519,-152.79228163,0.00019093,2]
[374668313,1753405862529,-460.0,0.00019095,2]
[374668314,1753405862539,-460.0,0.00019095,2]
[374668315,1753405862549,-546.94,0.00019095,2]
[374668316,1753405862559,-211.06454854,0.00019095,2]
[374668317,1753405862569,-470.68193488,0.00019095,2]
[374668318,1753405862580,-460.0,0.00019095,2]
[374668319,1753405862590,-548.26,0.00019095,2]
[374668320,1753405862600,-217.43371302,0.00019095,2]
[374668321,1753405862610,-460.0,0.00019095,2]
[374668322,1753405862620,-460.0,0.00019095,2]
[374668323,1753405862630,-460.0,0.00019095,2]
[374668324,1753405862640,-460.0,0.00019095,2]
[374668325,1753405862649,-460.0,0.00019095,2]
[374668326,1753405862659,-460.0,0.00019095,2]
[374668327,1753405862669,-460.0,0.00019095,2]
[374668328,1753405862678,-932.05,0.00019095,2]
[374668329,1753405862688,-460.0,0.00019095,2]
[374668330,1753405862698,-460.0,0.00019095,2]
[374668331,1753405862708,-460.0,0.00019095,2]
[374668332,1753405862717,-460.0,0.00019095,2]
[374668333,1753405862727,-460.0,0.00019095,2]
[374668334,1753405862736,-698.6,0.00019095,2]
[374668335,1753405862746,-460.0,0.00019095,2]
[374668336,1753405862755,-151.0,0.00019095,2]
[374668337,1753405862765,-460.0,0.00019095,2]
[374668338,1753405862775,-460.0,0.00019095,2]
[374668339,1753405862784,-460.0,0.00019095,2]
[374668340,1753405862794,-460.0,0.00019095,2]
[374668341,1753405862803,-460.0,0.00019095,2]
[374668342,1753405862813,-170.561542,0.00019095,2]
[374668343,1753405862822,-170.561542,0.00019095,2]
[374668344,1753405862831,-993.5,0.00019095,2]
[374668345,1753405862840,-460.0,0.00019095,2]
[374668346,1753405862850,-151.0,0.000191,2]
[374668347,1753405862860,-420.0,0.00019118,2]
[374668348,1753405862869,-420.0,0.00019118,2]
[374668349,1753405862878,-227.0,0.00019118,2]
[374668350,1753405862887,-300.0,0.00019118,2]
[374668351,1753405862896,-420.0,0.00019118,2]
[374668352,1753405862905,-230.0,0.00019135,2]
[374668353,1753405862914,-4359.35292185,0.00019141,2]
[374668354,1753405862923,-1680.0,0.00019171,2]
[374668355,1753405862932,-269.329598,0.00019178,2]
[374668356,1753405862941,-5000.0,0.00019178,2]
[374668357,1753405862950,-5000.0,0.00019178,2]
[374668358,1753405862960,-151.0,0.00019178,7]
[374668359,1753405862969,-151.0,0.000192,2]
[374668360,1753405862979,-151.0,0.000192,2]
[374668361,1753405862991,-151.0,0.000192,2]
[374668362,1753405863001,-151.0,0.000192,2]
[374668363,1753405863011,-206.1693,0.000192,2]
[374668364,1753405863021,-337.648918,0.000192,2]
[374668365,1753405863031,-206.1693,0.000192,2]
[374668366,1753405863041,-337.648918,0.000192,2]
[374668367,1753405863050,-362.441595,0.000192,2]
[374668368,1753405863061,-646.526861,0.000192,2]
[374668369,1753405863079,-362.441595,0.000192,2]
[374668370,1753405863089,-646.526861,0.000192,2]
[374668371,1753405863099,-506.67675833,0.00019211,2]
[374668372,1753405863112,-408.88635278,0.00019211,2]
[374668373,1753405863123,-839.14,0.00019211,2]
[374668374,1753405863134,-891.45,0.00019211,2]
[374668375,1753405863269,-3004.04,0.00019211,2]
[374668376,1753405863284,-460.0,0.00019211,2]
[374668377,1753405863294,-808.95,0.00019211,2]
[374668378,1753405863304,-1680.0,0.00019212,2]
[374668379,1753405863314,-664.13,0.00019213,2]
[374668380,1753405863326,-460.0,0.00019213,2]
[374668381,1753405863336,-460.0,0.00019213,2]
[374668382,1753405863346,-8109.86,0.00019213,2]
[374668383,1753405863356,-4205.78,0.00019213,2]
[374668384,1753405863366,-460.0,0.00019213,2]
[374668385,1753405863376,-828.63,0.00019213,2]
[374668386,1753405863386,-460.0,0.00019213,2]
[374668387,1753405863395,-1045.24,0.00019213,2]
[374668388,1753405863406,-460.0,0.00019213,2]
[374668389,1753405863415,-876.12,0.00019213,2]
[374668390,1753405863425,-3080.87,0.00019213,2]
[374668391,1753405863435,-630.25,0.00019213,2]
[374668392,1753405863445,-460.0,0.00019213,2]
[374668393,1753405863455,-2623.82,0.00019213,2]
[374668394,1753405863465,-1224.91,0.00019213,2]
[374668395,1753405863475,-729.01,0.00019213,2]
[374668396,1753405863485,-460.0,0.00019215,2]
[374668397,1753405863495,-460.0,0.00019215,2]
[374668398,1753405863505,-460.0,0.00019215,2]
[374668399,1753405863515,-292.8985634,0.00019215,2]
[374668400,1753405863525,-829.26,0.00019215,2]
[374668401,1753405863535,-641.73,0.00019215,2]
[374668402,1753405863544,-460.0,0.00019215,2]
[374668403,1753405863554,-460.0,0.00019215,2]
[374668404,1753405863563,-460.0,0.00019215,2]
[374668405,1753405863575,-460.0,0.00019215,2]
[374668406,1753405863585,-460.0,0.00019215,2]
[374668407,1753405863595,-797.44,0.00019215,2]
[374668408,1753405863604,-460.0,0.00019215,2]
[374668409,1753405863613,-1009.95,0.00019215,2]
[374668410,1753405863623,-1461.37,0.00019215,2]
[374668411,1753405863632,-873.27,0.00019215,2]
[374668412,1753405863642,-460.0,0.00019215,2]
[374668413,1753405863651,-720.64,0.00019215,2]
[374668414,1753405863661,-460.0,0.00019215,2]
[374668415,1753405863670,-478.9,0.00019215,2]
[374668416,1753405863680,-2863.12,0.00019215,2]
[374668417,1753405863689,-460.0,0.00019215,2]
[374668418,1753405863699,-570.91,0.00019215,2]
[374668419,1753405863709,-460.0,0.00019215,2]
[374668420,1753405863719,-1139.2,0.00019215,2]
[374668421,1753405863729,-576.02,0.00019215,2]
[374668422,1753405863739,-460.0,0.00019215,2]
[374668423,1753405863749,-831.56,0.00019215,2]
[374668424,1753405863758,-1082.99,0.00019215,2]
[374668425,1753405863768,-1185.33,0.00019215,2]
[374668426,1753405863777,-1580.14,0.00019215,2]
[374668427,1753405863787,-460.0,0.00019215,2]
[374668428,1753405863796,-460.0,0.00019215,2]
[374668429,1753405863805,-842.02,0.00019215,2]
[374668430,1753405863815,-460.0,0.00019215,2]
[374668431,1753405863826,-630.13,0.00019215,2]
[374668432,1753405863836,-460.0,0.00019215,2]
[374668433,1753405863846,-460.0,0.00019215,2]
[374668434,1753405863856,-460.0,0.00019215,2]
[374668435,1753405863866,-460.0,0.00019215,2]
[374668436,1753405863875,-825.34,0.00019215,2]
[374668437,1753405863885,-1609.8,0.00019215,2]
[374668438,1753405863894,-851.14,0.00019236,2]
[374668439,1753405863904,-460.0,0.00019236,2]
[374668440,1753405863914,-460.0,0.00019236,2]
[374668441,1753405863924,-460.0,0.00019236,2]
[374668442,1753405863934,-500.0,0.00019236,2]
[374668443,1753405863944,-460.0,0.00019236,2]
[374668444,1753405863954,-460.0,0.00019236,2]
[374668445,1753405863964,-460.0,0.00019236,2]
[374668446,1753405863974,-460.0,0.00019236,2]
[374668447,1753405863983,-460.0,0.00019236,2]
[374668448,1753405863993,-460.0,0.00019236,2]
[374668449,1753405864005,-460.0,0.00019236,2]
[374668450,1753405864015,-1129.03,0.00019236,2]
[374668451,1753405864025,-460.0,0.00019236,2]
[374668452,1753405864034,-1000.0,0.00019238,2]
[374668453,1753405864043,-500.0,0.00019238,2]
[374668454,1753405864053,-1000.0,0.00019238,2]
[374668455,1753405864067,-350.99718503,0.00019238,2]
[374668456,1753405864088,-1000.0,0.00019238,2]
[374668457,1753405864101,-1000.0,0.00019238,2]
[374668458,1753405864115,-1000.00000001,0.00019239,2]
[374668459,1753405864126,-1000.0,0.00019251,2]
[374668460,1753405864136,-460.0,0.00019258,2]
[374668461,1753405864147,-460.0,0.00019258,2]
[374668462,1753405864158,-460.0,0.00019258,2]
[374668463,1753405864170,-460.0,0.00019258,2]
[374668464,1753405864183,-662.33,0.00019258,2]
[374668465,1753405864194,-634.74,0.00019258,2]
[374668466,1753405864203,-460.0,0.00019258,2]
[374668467,1753405864219,-460.0,0.00019258,2]
[374668468,1753405864231,-1638.24,0.00019258,2]
[374668469,1753405864242,-1280.01,0.00019258,2]
[374668470,1753405864252,-545.16,0.00019258,2]
[374668471,1753405864264,-516.35,0.00019258,2]
[374668472,1753405864274,-632.2,0.00019258,2]
[374668473,1753405864283,-1029.2,0.00019258,2]
[374668474,1753405864293,-6996.8,0.00019258,2]
[374668475,1753405864303,-2763.92,0.00019258,2]
[374668476,1753405864313,-155.0,0.00019265,2]
[374668477,1753405864326,-500.0,0.00019273,2]
[374668478,1753405864336,-500.50266249,0.00019273,2]
[374668479,1753405864346,-500.0,0.00019273,2]
[374668480,1753405864357,-223.0315306,0.00019276,2]
[374668481,1753405864366,-160.0,0.00019276,2]
[374668482,1753405864376,-4359.35292185,0.00019279,2]
[374668483,1753405864385,-200.0,0.00019299,2]
[374668484,1753405864395,-2156.6627504,0.000193,2]
[374668485,1753405864406,-1166278.99388258,0.000193,2]
[374668486,1753405864416,-151.0,0.000193,2]
[374668487,1753405864426,-187.479922,0.000193,2]
[374668488,1753405864436,-187.479922,0.000193,2]
[374668489,1753405864446,-151.0,0.000193,2]
[374668490,1753405864455,-151.0,0.000193,2]
[374668491,1753405864465,-266.303106,0.000193,2]
[374668492,1753405864475,-159.672205,0.000193,2]
[374668493,1753405864484,-151.0,0.000193,2]
[374668494,1753405864498,-252.225551,0.000193,2]
[374668495,1753405864517,-232.905966,0.000193,2]
[374668496,1753405864527,-151.0,0.000193,2]
[374668497,1753405864537,-151.0,0.000193,2]
[374668498,1753405864547,-151.0,0.000193,2]
[374668499,1753405864557,-151.0,0.000193,2]
[374668500,1753405864567,-151.0,0.000193,2]
[374668501,1753405864578,-3334.85985155,0.000193,2]
[374668502,1753405864588,-151.0,0.000193,2]
[374668503,1753405864597,-151.0,0.000193,2]
[374668504,1753405864607,-151.0,0.000193,2]
[374668505,1753405864616,-151.0,0.000193,2]
[374668506,1753405864626,-151.0,0.000193,2]
[374668507,1753405864635,-214.9,0.000193,2]
[374668508,1753405864645,-214.9,0.000193,2]
[374668509,1753405864655,-151.0,0.000193,2]
[374668510,1753405864665,-151.0,0.000193,2]
[374668511,1753405864674,-151.0,0.000193,2]
[374668512,1753405864685,-151.0,0.000193,2]
[374668513,1753405864694,-151.0,0.000193,2]
[374668514,1753405864705,-206.1693,0.000193,2]
[374668515,1753405864715,-337.648918,0.000193,2]
[374668516,1753405864724,-206.1693,0.000193,2]
[374668517,1753405864734,-337.648918,0.000193,2]
[374668518,1753405864744,-170.561542,0.000193,2]
[374668519,1753405864754,-170.561542,0.000193,2]
[374668520,1753405864764,-362.441595,0.000193,2]
[374668521,1753405864773,-646.526861,0.000193,2]
[374668522,1753405864783,-362.441595,0.000193,2]
[374668523,1753405864793,-646.526861,0.000193,2]
[374668524,1753405864803,-217.502981,0.000193,2]
[374668525,1753405864813,-217.502981,0.000193,2]
[374668526,1753405864824,-151.0,0.000193,2]
[374668527,1753405864834,-542.679909,0.000193,2]
[374668528,1753405864843,-151.0,0.000193,2]
[374668529,1753405864853,-542.679909,0.000193,2]
[374668530,1753405864863,-186.193279,0.000193,2]
[374668531,1753405864872,-151.0,0.000193,2]
[374668532,1753405864881,-186.193279,0.000193,2]
[374668533,1753405864891,-151.0,0.000193,2]
[374668534,1753405864901,-151.0,0.000193,2]
[374668535,1753405864910,-151.0,0.000193,2]
[374668536,1753405864920,-422.0,0.00019311,2]
[374668537,1753405864930,-2000.0,0.00019316,2]
[374668538,1753405864939,-2000.0,0.00019316,2]
[374668539,1753405864949,-2000.0,0.00019316,2]
[374668540,1753405864959,-2000.0,0.00019316,2]
[374668541,1753405864968,-151.0,0.00019329,2]
[374668542,1753405864977,-100000.0,0.00019329,2]
[374668543,1753405864987,-460.0,0.00019337,2]
[374668544,1753405864996,-460.0,0.00019337,2]
[374668545,1753405865006,-460.0,0.00019337,2]
[374668546,1753405865015,-470.3,0.00019337,2]
[374668547,1753405865025,-842.02,0.00019356,2]
[374668548,1753405865035,-797.25,0.00019356,2]
[374668549,1753405865044,-1339.86,0.00019356,2]
[374668550,1753405865054,-1455.26,0.00019356,2]
[374668551,1753405865064,-646.53,0.00019356,2]
[374668552,1753405865078,-689.47,0.00019356,2]
[374668553,1753405865087,-1116.98,0.00019356,2]
[374668554,1753405865097,-2881.55,0.00019356,2]
[374668555,1753405865107,-4319.45,0.00019356,2]
[374668556,1753405865117,-460.0,0.00019356,2]
[374668557,1753405865127,-4169.87,0.00019356,2]
[374668558,1753405865136,-460.0,0.00019356,2]
[374668559,1753405865146,-2789.02,0.00019356,2]
[374668560,1753405865157,-1289.13,0.00019356,2]
[374668561,1753405865167,-460.0,0.00019358,2]
[374668562,1753405865177,-460.0,0.00019358,2]
[374668563,1753405865186,-215.04589078,0.00019358,2]
[374668564,1753405865196,-806.93,0.00019358,2]
[374668565,1753405865206,-460.0,0.00019358,2]
[374668566,1753405865215,-460.0,0.00019358,2]
[374668567,1753405865225,-460.0,0.00019358,2]
[374668568,1753405865234,-460.0,0.00019358,2]
[374668569,1753405865245,-552.15,0.00019358,2]
[374668570,1753405865254,-676.46,0.00019358,2]
[374668571,1753405865264,-460.0,0.00019358,2]
[374668572,1753405865274,-904.33,0.00019358,2]
[374668573,1753405865283,-1156.4,0.00019358,2]
[374668574,1753405865293,-500.81,0.00019358,2]
[374668575,1753405865303,-460.0,0.00019358,2]
[374668576,1753405865313,-680.32,0.00019358,2]
[374668577,1753405865323,-460.0,0.00019358,2]
[374668578,1753405865332,-1029.72,0.00019358,2]
[374668579,1753405865342,-723.77,0.00019358,2]
[374668580,1753405865352,-460.0,0.00019358,2]
[374668581,1753405865361,-460.0,0.00019358,2]
[374668582,1753405865371,-460.0,0.00019358,2]
[374668583,1753405865381,-770.55,0.00019358,2]
[374668584,1753405865391,-460.0,0.00019358,2]
[374668585,1753405865400,-466.04290391,0.00019358,2]
[374668586,1753405865410,-1464.77,0.00019358,2]
[374668587,1753405865420,-467.08440281,0.00019358,2]
[374668588,1753405865429,-1451.71,0.00019358,2]
[374668589,1753405865439,-487.03756914,0.00019358,2]
[374668590,1753405865448,-460.0,0.00019358,2]
[374668591,1753405865458,-600.06,0.00019358,2]
[374668592,1753405865467,-460.0,0.00019358,2]
[374668593,1753405865477,-460.0,0.00019358,2]
[374668594,1753405865487,-649.29,0.00019358,2]
[374668595,1753405865496,-460.0,0.00019358,2]
[374668596,1753405865506,-460.0,0.00019358,2]
[374668597,1753405865516,-632.98,0.00019358,2]
[374668598,1753405865526,-700.52,0.00019358,2]
[374668599,1753405865536,-570.48,0.00019358,2]
[374668600,1753405865546,-1352.89,0.00019358,2]
[374668601,1753405865555,-1205.96,0.00019358,2]
[374668602,1753405865567,-696.97,0.00019358,2]
[374668603,1753405865579,-542.27,0.00019358,2]
[374668604,1753405865590,-625.29,0.00019358,2]
[374668605,1753405865600,-460.0,0.00019359,2]
[374668606,1753405865609,-460.0,0.00019359,2]
[374668607,1753405865620,-460.0,0.00019359,2]
[374668608,1753405865630,-2698.01,0.00019359,2]
[374668609,1753405865640,-550.66,0.00019359,2]
[374668610,1753405865650,-1284.55,0.00019359,2]
[374668611,1753405865659,-5026.12,0.00019359,2]
[374668612,1753405865669,-3778.26,0.00019359,2]
[374668613,1753405865679,-516.32,0.00019359,2]
[374668614,1753405865801,-427.06258271,0.0001936,2]
[374668615,1753405865811,-596.57989314,0.0001936,2]
[374668616,1753405865820,-460.0,0.0001936,2]
[374668617,1753405865831,-460.0,0.0001936,2]
[374668618,1753405865841,-445.93920205,0.0001936,2]
[374668619,1753405865851,-460.0,0.0001936,2]
[374668620,1753405865860,-614.02,0.0001936,2]
[374668621,1753405865870,-460.0,0.0001936,2]
[374668622,1753405865889,-460.0,0.0001936,2]
[374668623,1753405865910,-460.0,0.0001936,2]
[374668624,1753405865920,-878.92,0.0001936,2]
[374668625,1753405865930,-843.8,0.0001936,2]
[374668626,1753405865939,-460.0,0.0001936,2]
[374668627,1753405865949,-460.0,0.00019366,2]
[374668628,1753405865959,-460.0,0.00019366,2]
[374668629,1753405865968,-460.0,0.00019366,2]
[374668630,1753405865977,-485.64,0.00019366,2]
[374668631,1753405865986,-460.0,0.00019366,2]
[374668632,1753405865996,-1979.39,0.00019366,2]
[374668633,1753405866005,-631.28,0.00019366,2]
[374668634,1753405866015,-460.0,0.00019366,2]
[374668635,1753405866024,-942.95,0.00019366,2]
[374668636,1753405866034,-460.0,0.00019366,2]
[374668637,1753405866044,-460.0,0.00019366,2]
[374668638,1753405866055,-460.0,0.00019366,2]
[374668639,1753405866069,-460.0,0.00019366,2]
[374668640,1753405866081,-460.0,0.00019366,2]
[374668641,1753405866090,-497.3,0.00019366,2]
[374668642,1753405866100,-1681.11,0.00019366,2]
[374668643,1753405866111,-675.8,0.00019366,2]
[374668644,1753405866120,-460.0,0.00019366,2]
[374668645,1753405866130,-756.57,0.00019366,2]
[374668646,1753405866140,-821.38,0.00019366,2]
[374668647,1753405866149,-526.09,0.00019366,2]
[374668648,1753405866161,-759.71,0.00019366,2]
[374668649,1753405866172,-524.24,0.00019366,2]
[374668650,1753405866183,-460.0,0.00019366,2]
[374668651,1753405866193,-460.0,0.00019366,2]
[374668652,1753405866202,-174.67482996,0.00019366,2]
[374668653,1753405866211,-738.71,0.00019366,2]
[374668654,1753405866221,-151.0,0.00019367,2]
[374668655,1753405866230,-1149.0,0.00019367,2]
[374668656,1753405866240,-151.0,0.00019367,2]
[374668657,1753405866250,-151.0,0.00019367,2]
[374668658,1753405866260,-151.0,0.00019367,2]
[374668659,1753405866269,-173.7533436,0.00019367,2]
[374668660,1753405866279,-151.0,0.00019367,2]
[374668661,1753405866289,-1079.0,0.00019367,2]
[374668662,1753405866299,-151.0,0.00019367,2]
[374668663,1753405866309,-500.0,0.00019367,2]
[374668664,1753405866319,-452.82821464,0.00019367,2]
[374668665,1753405866331,-500.0,0.00019367,2]
[374668666,1753405866341,-793.28,0.00019367,2]
[374668667,1753405866350,-760.23,0.00019367,2]
[374668668,1753405866360,-177.20076303,0.00019367,2]
[374668669,1753405866370,-1500.0,0.00019368,2]
[374668670,1753405866380,-500.0,0.00019368,2]
[374668671,1753405866389,-1500.0,0.00019368,2]
[374668672,1753405866398,-1136.22517921,0.00019368,2]
[374668673,1753405866408,-460.0,0.00019369,2]
[374668674,1753405866419,-460.0,0.00019369,2]
[374668675,1753405866428,-546.94,0.00019369,2]
[374668676,1753405866437,-460.0,0.00019369,2]
[374668677,1753405866446,-548.26,0.00019369,2]
[374668678,1753405866456,-460.0,0.00019369,2]
[374668679,1753405866465,-460.0,0.00019369,2]
[374668680,1753405866474,-460.0,0.00019369,2]
[374668681,1753405866484,-460.0,0.00019369,2]
[374668682,1753405866493,-460.0,0.00019369,2]
[374668683,1753405866501,-460.0,0.00019369,2]
[374668684,1753405866511,-460.0,0.00019369,2]
[374668685,1753405866520,-932.05,0.00019369,2]
[374668686,1753405866529,-460.0,0.00019369,2]
[374668687,1753405866538,-460.0,0.00019369,2]
[374668688,1753405866548,-460.0,0.00019369,2]
[374668689,1753405866557,-460.0,0.00019369,2]
[374668690,1753405866566,-460.0,0.00019369,2]
[374668691,1753405866581,-698.6,0.00019369,2]
[374668692,1753405866590,-460.0,0.00019369,2]
[374668693,1753405866600,-460.0,0.00019369,2]
[374668694,1753405866609,-460.0,0.00019369,2]
[374668695,1753405866619,-460.0,0.00019369,2]
[374668696,1753405866629,-460.0,0.00019369,2]
[374668697,1753405866638,-210.47379534,0.00019369,2]
[374668698,1753405866647,-993.5,0.00019369,2]
[374668699,1753405866656,-509.52806293,0.00019369,2]
[374668700,1753405866666,-500.0,0.00019373,2]
[374668701,1753405866676,-183.29432342,0.00019373,2]
[374668702,1753405866685,-500.0,0.00019373,2]
[374668703,1753405866695,-500.0,0.00019373,2]